bitfinex-derivatives/quotes_ETHF0:USTF0_20250803
["timestamp","ask_amount","ask_price","bid_price","bid_amount"]
[1754239937660,12.0521,3492.9,3492.8,1.9783]
[1754239941966,1.6515,3492.6,3492.5,5.1861]
[1754239942170,2.0521,3492.6,3492.5,5.1861]
[1754239944374,2.0521,3492.6,3492.5,3.7907]
[1754239944874,2.0521,3492.6,3492.5,4.8946]
[1754239945069,2.0521,3492.6,3492.5,5.1861]
[1754239948675,2.0521,3492.6,3492.5,8.39895046]
[1754239949172,2.0521,3492.6,3492.5,8.10745046]
[1754239949374,0.8236,3492.2,3492.1,1.4341]
[1754239949671,2.0521,3492.2,3492.1,1.4341]
[1754239949872,2.0521,3492.2,3492.1,0.5829]
[1754239950977,1.6515,3492.2,3491.9,0.57275]
[1754239951180,2.0521,3492.0,3491.9,4.50845046]
[1754239951671,2.0521,3492.0,3491.9,4.89965046]
[1754239951870,0.57276,3491.9,3491.7,3.2078]
[1754239952176,2.0521,3491.8,3491.7,3.7907]
[1754239952477,2.0521,3491.8,3491.7,0.5829]
[1754239952977,2.0521,3491.8,3491.7,3.7907]
[1754239953177,2.0521,3491.8,3491.7,4.6419]
[1754239953870,2.0521,3491.8,3491.7,4.8946]
[1754239955678,2.0521,3491.8,3491.7,1.6868]
[1754239955978,2.0521,3491.8,3491.7,1.4341]
[1754239956584,4.63951,3492.4,3491.5,4.6419]
[1754239956585,2.0521,3491.6,3491.5,4.6419]
[1754239956883,2.0521,3491.6,3491.5,4.8946]
[1754239957080,2.0521,3491.6,3491.5,3.2078]
[1754239957279,0.5728,3491.7,3491.2,20.6096]
[1754239957486,0.2616,3491.5,3491.4,5.18065046]
[1754239957683,0.8236,3491.5,3491.4,5.18065046]
[1754239957984,2.0521,3491.5,3491.4,5.18065046]
[1754239959081,2.0521,3491.5,3491.4,0.2721]
[1754239959275,2.0521,3491.5,3491.4,0.5829]
[1754239959487,2.0521,3491.5,3491.4,1.0429]
[1754239959784,2.0521,3491.5,3491.4,0.5829]
[1754239960181,0.57284,3491.4,3491.3,3.2078]
[1754239960382,1.7514,3491.4,3491.3,1.5078]
[1754239960575,2.0521,3491.4,3491.3,1.9678]
[1754239961387,2.0521,3491.4,3491.3,1.6868]
[1754239961686,2.0521,3491.4,3491.3,1.9678]
[1754239962886,2.0521,3491.4,3491.3,1.6868]
[1754239963790,2.0521,3491.4,3491.3,1.964]
[1754239964977,0.9059,3491.6,3491.5,1.9409]
[1754239965184,2.0866,3491.6,3491.5,5.15375046]
[1754239967685,2.0866,3491.6,3491.5,1.4123]
[1754239967887,2.0866,3491.6,3491.5,0.5459]
[1754239968087,3.2078,3492.0,3491.3,1.0044]
[1754239968088,2.0866,3491.4,3491.3,1.0044]
[1754239968293,0.8312,3491.2,3491.1,0.9538]
[1754239968491,2.0866,3491.2,3491.1,1.4123]
[1754239969994,2.0866,3491.2,3491.1,0.5459]
[1754239970694,2.0866,3491.2,3491.1,1.0044]
[1754239970897,2.0866,3491.2,3491.1,1.4123]
[1754239971192,2.0866,3491.2,3491.1,1.9409]
[1754239971689,0.57286,3491.3,3491.1,1.9409]
[1754239971690,3.2078,3492.0,3491.1,1.9409]
[1754239971895,0.5092,3491.6,3491.5,4.01015046]
[1754239972091,2.0866,3491.6,3491.5,5.15375046]
[1754239974610,0.8312,3492.8,3492.7,0.7973]
[1754239974807,2.0866,3492.8,3492.7,5.15375046]
[1754239976308,2.0866,3492.8,3492.7,1.9409]
[1754239978115,2.0866,3492.8,3492.7,5.15375046]
[1754239978308,0.2469,3492.8,3492.7,5.15375046]
[1754239978614,1.6327,3492.8,3492.7,1.6637]
[1754239978815,0.8312,3492.5,3492.4,1.9409]
[1754239979013,2.0866,3492.5,3492.4,1.9409]
[1754239979312,1.6818,3492.5,3492.4,1.9409]
[1754239979514,0.3967,3492.7,3492.6,0.299]
[1754239979705,1.2279,3492.7,3492.6,1.9409]
[1754239979910,2.0866,3492.7,3492.6,1.9409]
[1754239980608,2.0866,3492.7,3492.6,1.6637]
[1754239981616,2.0866,3492.7,3492.6,1.9409]
[1754239982919,2.0866,3492.7,3492.6,1.4123]
[1754239983214,1.40388,3492.4,3492.3,3.9132]
[1754239983519,2.65936,3492.0,3491.9,4.8715]
[1754239984112,2.65936,3492.0,3491.9,5.1487]
[1754239984613,2.0866,3492.0,3491.9,5.1487]
[1754239986422,2.0866,3492.0,3491.9,8.36155046]
[1754239988314,0.57267,3492.5,3492.4,1.4824]
[1754239988517,0.96937,3492.5,3492.4,5.15375046]
[1754239989017,1.2279,3492.5,3492.4,5.15375046]
[1754239989217,10.5843,3492.9,3492.8,1.4824]
[1754239989414,12.0866,3492.9,3492.8,1.9409]
[1754239991824,11.6818,3492.9,3492.8,1.9409]
[1754239992316,10.0,3492.9,3492.8,1.9409]
[1754239996018,12.0545,3492.9,3492.8,21.4017]
[1754239997022,12.0545,3492.9,3492.8,21.6715]
[1754240000026,12.0545,3492.9,3492.8,21.3987]
[1754240000213,12.0545,3492.9,3492.8,0.2469]
[1754240000419,2.0545,3492.8,3492.7,3.4604]
[1754240000619,2.0545,3492.8,3492.7,23.1884]
[1754240000824,2.0545,3492.8,3492.7,3.4604]
[1754240001025,2.0545,3492.8,3492.7,23.1874]
[1754240002730,2.0545,3492.8,3492.7,22.9298]
[1754240002932,2.0545,3492.8,3492.7,19.722]
[1754240003230,1.40592,3492.8,3492.3,3.78048]
[1754240003423,0.8333,3492.5,3492.4,21.344]
[1754240003624,2.0545,3492.5,3492.4,21.344]
[1754240003826,2.0545,3492.5,3492.4,21.6138]
[1754240009830,2.62717,3492.5,3492.3,3.2078]
[1754240010037,2.0545,3492.4,3492.3,3.2078]
[1754240010239,2.0545,3492.4,3492.3,22.9108]
[1754240010438,2.0545,3492.4,3492.3,23.1634]
[1754240011537,2.0545,3492.4,3492.3,4.2766]
[1754240011834,2.0545,3492.4,3492.3,23.9766]
[1754240012534,2.0545,3492.4,3492.3,24.2864]
[1754240013529,10.0,3492.9,3492.3,22.9078]
[1754240013734,10.0,3492.9,3492.6,4.02065046]
[1754240013735,0.8333,3492.7,3492.6,4.02065046]
[1754240013934,2.0545,3492.7,3492.6,5.10665046]
[1754240014641,2.0545,3492.7,3492.6,0.2526]
[1754240015031,2.0545,3492.7,3492.6,5.10665046]
[1754240016236,10.3733,3492.9,3492.8,2.46641]
[1754240016437,11.6536,3492.9,3492.8,22.17741]
[1754240017132,11.2066,3492.9,3492.8,22.17741]
[1754240017336,10.0,3492.9,3492.8,22.17741]
[1754240019740,12.0545,3492.9,3492.8,22.17741]
[1754240020139,11.2066,3492.9,3492.8,22.17741]
[1754240020433,11.2066,3492.9,3492.8,1.8938]
[1754240020735,12.0545,3492.9,3492.8,19.701]
[1754240021335,0.7742,3492.8,3492.7,23.5281]
[1754240021543,2.0545,3492.8,3492.7,3.2078]
[1754240021842,2.0545,3492.5,3492.4,1.624]
[1754240022041,2.0545,3492.5,3492.4,21.5988]
[1754240028542,2.0223,3492.6,3492.5,1.37896]
[1754240028744,2.0223,3492.6,3492.5,21.31106]
[1754240029043,2.0223,3492.6,3492.5,22.13946]
[1754240029944,2.0223,3492.6,3492.5,21.5668]
[1754240036943,2.0223,3492.6,3492.5,21.3124]
[1754240037442,2.0223,3492.6,3492.5,21.5668]
[1754240038845,2.0223,3492.6,3492.5,24.77965046]
[1754240039244,0.7904,3492.7,3492.6,1.44504]
[1754240039448,1.1846,3492.7,3492.6,5.27669046]
[1754240039746,2.0223,3492.7,3492.6,5.08765046]
[1754240042140,2.0223,3492.7,3492.6,4.83325046]
[1754240042845,2.0223,3492.7,3492.6,5.08765046]
[1754240046049,0.7904,3492.7,3492.6,0.2401]
[1754240046352,0.7904,3492.4,3492.3,3.8315]
[1754240046548,0.7904,3492.4,3492.3,23.5225]
[1754240046746,2.0223,3492.4,3492.3,23.9673]
[1754240047651,2.0223,3492.4,3492.3,24.5249]
[1754240047949,2.0223,3492.4,3492.3,24.7736]
[1754240054251,2.0223,3492.4,3492.3,23.1389]
[1754240054552,2.0223,3492.4,3492.3,24.3026]
[1754240055055,2.0223,3492.4,3492.3,24.7957]
[1754240055356,2.0223,3492.4,3492.3,25.36839]
[1754240055957,12.0185,3492.9,3492.8,1.2025]
[1754240056149,12.0185,3492.9,3492.8,21.6005]
[1754240057252,2.0185,3492.8,3492.7,3.2078]
[1754240057457,1.22,3492.7,3492.5,20.063]
[1754240057653,2.0185,3492.6,3492.5,20.3177]
[1754240059354,1.37116,3492.6,3492.3,3.2078]
[1754240059555,2.0185,3492.4,3492.3,22.8958]
[1754240059751,2.0185,3492.4,3492.3,19.688]
[1754240061863,2.0185,3492.4,3492.3,19.9427]
[1754240062059,2.0185,3492.4,3492.3,20.3167]
[1754240062561,0.7985,3492.5,3492.4,0.8285]
[1754240062756,2.0185,3492.5,3492.4,1.9115]
[1754240062957,2.0185,3492.5,3492.3,22.8958]
[1754240062958,2.59116,3492.5,3492.3,22.8958]
[1754240063157,2.0185,3492.4,3492.3,22.8958]
[1754240063356,2.0185,3492.4,3492.3,19.688]
[1754240064361,2.0185,3492.4,3492.3,19.9427]
[1754240064556,2.0185,3492.4,3492.3,20.3167]
[1754240064752,2.0185,3492.4,3492.3,19.9427]
[1754240065258,2.0185,3492.4,3492.1,20.5309]
[1754240065558,2.0185,3492.0,3491.9,3.2078]
[1754240065864,2.0185,3491.8,3491.7,20.7856]
[1754240066565,2.0185,3491.8,3491.7,19.9447]
[1754240066758,2.0185,3491.8,3491.7,20.3187]
[1754240067166,2.0185,3491.8,3491.7,20.7856]
[1754240067465,2.0185,3491.8,3491.7,21.3505]
[1754240067664,2.0185,3491.8,3491.7,21.6015]
[1754240069176,1.97306,3491.3,3491.2,2.5825522]
[1754240069377,0.57292,3490.9,3490.8,6.16813665]
[1754240069678,0.57292,3490.9,3489.8,44.44685046]
[1754240069679,0.5567,3490.2,3490.1,19.819]
[1754240069980,1.4002,3490.0,3489.8,23.03185046]
[1754240070171,0.7639373,3490.0,3489.9,2.2171334]
[1754240070368,1.2307373,3490.0,3489.9,21.4596334]
[1754240070670,1.2307373,3490.0,3489.9,2.4293334]
[1754240070873,0.2072373,3490.0,3489.9,1.0315334]
[1754240071178,0.2072373,3490.0,3489.9,0.4339934]
[1754240071179,1.2307373,3490.0,3489.9,0.4339934]
[1754240071470,1.2307373,3490.0,3489.2,0.3146]
[1754240071471,0.57318,3489.4,3489.1,3.5649]
[1754240071673,0.57327,3488.8,3488.3,0.374]
[1754240071878,0.57327,3488.8,3488.2,2.5825522]
[1754240071879,1.2653,3488.8,3488.7,1.6694]
[1754240072075,3.5845,3489.8,3488.7,1.2954]
[1754240072280,0.6374,3489.5,3489.4,4.88225046]
[1754240072480,1.642,3489.5,3489.4,1.6694]
[1754240072675,1.642,3489.5,3489.4,21.4874]
[1754240072876,1.4002,3489.5,3489.4,21.4874]
[1754240073778,1.9989,3489.5,3489.4,2.0265]
[1754240073978,1.9989,3489.5,3489.4,21.4695]
[1754240074182,1.9989,3489.5,3489.4,1.6525]
[1754240074380,1.9989,3489.5,3489.4,21.8445]
[1754240074779,1.642,3489.5,3489.4,21.8445]
[1754240076184,1.9989,3489.5,3489.4,21.8445]
[1754240076484,0.6374,3489.2,3489.1,2.0265]
[1754240076788,0.8435,3489.4,3489.1,20.6365]
[1754240076979,1.4002,3489.4,3489.3,2.0265]
[1754240077173,1.642,3489.4,3489.3,2.0265]
[1754240077479,0.3569,3489.7,3489.0,1.6525]
[1754240077480,2.57212,3489.1,3489.0,1.6525]
[1754240077685,2.57212,3489.1,3489.0,21.4585]
[1754240077884,2.57212,3489.1,3489.0,21.4565]
[1754240079184,1.9989,3489.1,3489.0,1.6525]
[1754240079391,1.9989,3489.1,3489.0,21.4505]
[1754240081383,1.9989,3489.1,3489.0,21.8245]
[1754240081588,1.9989,3489.1,3489.0,21.8195]
[1754240082288,1.9989,3489.1,3489.0,25.0273]
[1754240085083,1.9989,3489.1,3489.0,1.1856]
[1754240085289,2.0605,3488.8,3488.7,1.727]
[1754240085687,1.10088,3488.7,3488.4,0.4132]
[1754240085989,1.10088,3488.7,3487.9,0.57341]
[1754240085990,2.0605,3488.0,3487.9,1.7262]
[1754240086188,0.57334,3488.4,3488.0,0.5734]
[1754240086387,0.3838,3488.3,3488.2,4.934]
[1754240086588,0.6428,3488.3,3488.2,5.3472]
[1754240086895,0.9399,3488.3,3488.2,5.3472]
[1754240087092,1.4062,3488.3,3488.2,5.3472]
[1754240087388,1.4062,3488.3,3487.9,0.8881]
[1754240087389,2.0605,3488.3,3487.9,0.8881]
[1754240087582,2.0605,3488.0,3487.9,1.2513]
[1754240087786,3.78114,3488.4,3487.7,3.2078]
[1754240087787,2.0605,3487.8,3487.7,3.8698]
[1754240088090,2.0605,3487.8,3487.7,24.7098]
[1754240088292,2.0605,3487.8,3487.7,24.7108]
[1754240088493,2.0605,3487.8,3487.7,4.9348]
[1754240088890,2.0605,3487.8,3487.7,24.2331]
[1754240089296,2.0605,3487.8,3487.7,24.7088]
[1754240089492,1.2358,3487.8,3487.3,3.2078]
[1754240089696,1.2358,3487.8,3486.9,1.44482088]
[1754240089697,0.9399,3487.2,3487.1,2.1394]
[1754240090003,0.259,3487.2,3487.1,21.9114]
[1754240090297,0.9399,3487.2,3487.1,21.9114]
[1754240090796,0.259,3487.6,3487.5,0.9886]
[1754240090995,0.6428,3487.6,3487.5,20.6101]
[1754240091292,0.9399,3487.6,3487.5,20.6101]
[1754240091489,1.4062,3487.6,3487.5,21.9114]
[1754240093594,1.6748,3487.6,3487.5,21.9114]
[1754240093794,2.0605,3487.6,3487.5,21.9114]
[1754240094194,0.9399,3487.6,3487.5,21.9114]
[1754240094390,0.3838,3487.8,3487.5,25.12425046]
[1754240094697,1.97961,3488.0,3487.9,2.1394]
[1754240094891,1.97961,3488.0,3487.9,21.8974]
[1754240095093,2.24821,3488.0,3487.9,21.8974]
[1754240095298,2.63391,3488.0,3487.9,21.8974]
[1754240096299,1.6748,3488.0,3487.9,21.8974]
[1754240096500,0.57337,3488.2,3488.1,0.8381]
[1754240096700,0.3838,3488.3,3488.1,0.8381]
[1754240096890,0.6428,3488.3,3488.2,21.8924]
[1754240097297,0.3857,3488.6,3488.5,0.8381]
[1754240097298,0.5733,3488.6,3488.5,0.8381]
[1754240097497,1.2161,3488.6,3488.5,21.8904]
[1754240097697,1.5132,3488.6,3488.5,21.8904]
[1754240097899,0.9399,3488.6,3488.5,21.8904]
[1754240099001,0.83229,3488.7,3488.6,1.8753]
[1754240099205,1.51319,3488.7,3488.6,2.1394]
[1754240099398,3.42410212,3488.7,3488.6,2.1394]
[1754240100307,3.42410212,3488.7,3488.6,1.727]
[1754240100707,3.42410212,3488.7,3488.6,2.1394]
[1754240101802,3.42410212,3488.7,3488.6,21.8784]
[1754240102702,1.36360212,3488.7,3488.6,21.466]
[1754240103011,0.79031212,3488.7,3488.6,21.8744]
[1754240103203,0.79031212,3488.7,3488.6,22.4477]
[1754240103505,2.24797,3489.4,3489.3,0.8381]
[1754240103709,3.59575313,3489.4,3489.3,21.461]
[1754240104007,3.42446667,3489.4,3489.3,1.727]
[1754240104208,3.42446667,3489.4,3489.3,19.9868]
[1754240104401,3.42446667,3489.4,3489.3,0.2488]
[1754240104596,3.42446667,3489.4,3489.0,1.727]
[1754240104597,1.39792,3489.1,3489.0,1.727]
[1754240104804,0.8501,3489.0,3488.9,3.2078]
[1754240105008,2.63386,3488.2,3488.0,3.2078]
[1754240105197,2.63386,3488.2,3488.1,19.743]
[1754240105403,1.2085,3487.6,3487.5,2.1394]
[1754240105701,0.9399,3487.6,3487.5,21.8914]
[1754240106309,0.259,3487.6,3487.5,21.8904]
[1754240107010,0.259,3487.6,3487.5,2.1394]
[1754240107203,0.6428,3487.6,3487.5,21.8904]
[1754240108110,0.4663,3487.8,3487.5,21.16256]
[1754240108412,1.6767,3488.1,3488.0,1.727]
[1754240108910,2.0605,3488.1,3488.0,21.469]
[1754240110106,2.0605,3488.1,3488.0,0.9261]
[1754240110307,2.0605,3488.1,3488.0,19.743]
[1754240111211,1.3981,3488.0,3487.9,0.5129]
[1754240111413,2.6339,3488.0,3487.9,20.6651]
[1754240111809,2.6339,3488.0,3487.9,20.397]
[1754240112504,2.6339,3488.0,3487.5,0.4124]
[1754240112505,0.3838,3487.9,3487.5,0.4132]
[1754240112712,0.9399,3487.6,3487.5,2.1394]
[1754240113007,0.9399,3487.6,3487.5,21.8704]
[1754240113505,1.6748,3487.6,3487.5,21.8704]
[1754240113910,0.5734,3488.1,3487.5,24.35543046]
[1754240114112,2.6211,3488.1,3488.0,2.1032]
[1754240114308,0.247,3488.1,3488.0,21.8302]
[1754240114512,1.2076,3488.7,3488.6,1.2181]
[1754240114715,1.59680016,3488.7,3488.6,20.9431]
[1754240115118,2.43690016,3488.7,3488.6,21.8282]
[1754240115414,0.77490016,3488.7,3488.6,21.8282]
[1754240115618,0.77490016,3488.7,3488.6,25.036]
[1754240115813,0.3956,3488.9,3488.6,25.036]
[1754240116021,1.74097955,3488.8,3488.7,2.1032]
[1754240116316,2.0477,3488.8,3488.7,21.4892]
[1754240116621,2.0477,3488.8,3488.7,1.7302]
[1754240117014,1.662,3488.8,3488.7,2.1032]
[1754240117214,1.2258,3489.4,3488.8,0.4051]
[1754240117414,3.56424137,3489.3,3489.2,1.7302]
[1754240117714,3.39228659,3489.3,3489.2,2.1032]
[1754240118011,2.43339659,3489.3,3489.2,2.1032]
[1754240118213,1.662,3489.3,3489.2,2.1032]
[1754240118611,0.7225,3489.3,3489.2,1.7302]
[1754240118921,2.0477,3489.9,3489.8,1.7302]
[1754240119125,2.21960673,3489.9,3489.8,21.4872]
[1754240119316,2.79269673,3489.9,3489.8,20.0214]
[1754240120218,2.79269673,3489.9,3489.0,3.2078]
[1754240120219,0.495,3489.3,3489.0,3.2078]
[1754240120521,2.0477,3489.1,3489.0,5.311]
[1754240120714,2.0477,3489.1,3489.0,25.066]
[1754240120914,1.662,3489.1,3489.0,25.066]
[1754240122016,1.662,3489.1,3489.0,25.064]
[1754240122925,0.6426,3489.3,3489.2,2.1032]
[1754240123129,0.6426,3489.3,3489.2,21.8492]
[1754240123330,0.247,3489.3,3489.2,21.8492]
[1754240124538,1.2664,3489.9,3489.8,0.5836]
[1754240124730,1.662,3489.9,3489.8,21.8472]
[1754240125242,0.247,3489.9,3489.8,21.8472]
[1754240125439,0.6426,3489.9,3489.8,21.8472]
[1754240125636,0.9695,3489.9,3489.8,21.8472]
[1754240125938,2.0477,3489.9,3489.8,21.8472]
[1754240127637,2.0477,3489.9,3489.8,21.4742]
[1754240127836,3.2078,3490.0,3489.9,1.5196]
[1754240128137,3.2078,3490.0,3489.9,2.1032]
[1754240128339,3.8504,3490.0,3489.9,2.1032]
[1754240128537,3.2078,3490.0,3489.9,2.1032]
[1754240128941,4.1773,3490.4,3490.3,1.7302]
[1754240129244,5.2555,3490.4,3490.3,21.8402]
[1754240129745,2.0477,3490.4,3490.3,21.8402]
[1754240130137,2.0477,3490.4,3490.3,20.0034]
[1754240130633,2.0477,3490.4,3490.3,20.4085]
[1754240130838,0.57298,3490.6,3490.3,21.8422]
[1754240131040,1.414,3490.5,3490.4,2.1032]
[1754240131238,0.7714,3490.5,3490.4,1.7302]
[1754240131436,0.7714,3490.7,3490.6,0.8451]
[1754240131643,1.662,3490.7,3490.6,21.8382]
[1754240131839,2.0477,3490.7,3490.6,2.1032]
[1754240132039,2.0477,3490.7,3490.6,21.4742]
[1754240133240,0.9695,3490.7,3490.6,21.8472]
[1754240133745,0.4445,3491.0,3490.6,20.5891]
[1754240134049,1.414,3491.3,3491.2,2.1032]
[1754240134250,1.414,3491.3,3491.2,21.8472]
[1754240134543,1.662,3491.3,3491.2,21.8472]
[1754240134946,0.9695,3491.3,3491.2,21.8472]
[1754240135146,0.57282,3491.5,3491.2,21.8472]
[1754240135346,0.9695,3491.4,3491.3,2.1032]
[1754240135744,1.414,3491.4,3491.3,2.1032]
[1754240137247,0.9695,3491.6,3491.5,2.1032]
[1754240137443,0.9695,3491.6,3491.5,21.8432]
[1754240137651,1.414,3491.6,3491.5,21.8432]
[1754240140045,0.57278,3491.8,3491.6,0.7781]
[1754240140250,1.414,3491.7,3491.6,2.1032]
[1754240140451,1.662,3491.7,3491.6,21.8312]
[1754240140748,2.0477,3491.7,3491.6,21.8312]
[1754240142150,2.0477,3491.7,3491.6,21.4582]
[1754240143146,2.0477,3491.4,3491.3,4.1388]
[1754240143350,2.0477,3491.4,3491.3,24.175]
[1754240143552,2.0477,3491.4,3491.3,25.028]
[1754240143749,1.414,3491.4,3491.3,25.028]
[1754240143949,0.9445,3491.7,3491.3,23.7699]
[1754240144153,1.2861,3491.6,3491.5,1.1943]
[1754240144354,1.6578,3491.6,3491.5,21.7677]
[1754240144852,2.0349,3491.6,3491.5,21.7677]
[1754240147153,0.3771,3492.5,3492.0,1.4163]
[1754240147357,1.97097,3492.5,3492.4,2.0477]
[1754240147560,2.60757,3492.5,3492.4,21.3934]
[1754240148354,2.60757,3492.5,3492.4,1.1978]
[1754240148558,2.60757,3492.5,3492.4,19.9751]
[1754240148858,2.60757,3492.5,3492.4,0.6349]
[1754240149056,2.60757,3492.5,3492.4,20.9138]
[1754240149256,2.60757,3492.5,3492.4,21.7637]
[1754240150155,2.60757,3492.5,3492.4,21.3894]
[1754240150653,2.60757,3492.5,3492.4,21.7637]
[1754240150950,2.60757,3492.5,3492.4,1.6734]
[1754240151150,2.60757,3492.5,3492.4,21.3814]
[1754240151950,2.23587,3492.5,3492.4,21.7557]
[1754240152456,2.60757,3492.5,3492.4,21.7557]
[1754240152651,1.88997,3492.5,3492.3,3.2078]
[1754240152857,2.60757,3492.5,3492.4,19.706]
[1754240153059,2.60757,3492.5,3492.4,20.0838]
[1754240153258,2.60757,3492.5,3492.4,20.3409]
[1754240153763,2.60757,3492.5,3492.3,3.2078]
[1754240154058,2.0349,3491.9,3491.8,2.0477]
[1754240154356,2.0349,3491.9,3491.8,21.7537]
[1754240155054,0.3771,3492.3,3491.8,21.09877]
[1754240155250,0.57266,3492.5,3492.3,0.3778]
[1754240155455,1.6632,3492.4,3492.3,21.2791]
[1754240155657,2.0349,3492.4,3492.3,20.9048]
[1754240158159,2.0349,3492.4,3492.3,1.1978]
[1754240158459,2.0349,3492.4,3492.3,20.9038]
[1754240158957,2.0349,3492.4,3492.3,21.3794]
[1754240159959,2.0349,3492.4,3492.3,1.6734]
[1754240160262,1.85878,3492.4,3492.3,19.705]
[1754240160763,2.60758,3492.4,3492.3,19.705]
[1754240161259,2.60758,3492.4,3492.3,23.289772]
[1754240161962,2.60758,3492.4,3492.3,24.963172]
[1754240162264,1.51828,3492.4,3492.3,25.337472]
[1754240162557,2.23588,3492.4,3492.3,25.337472]
[1754240162762,2.60758,3492.4,3492.3,25.337472]
[1754240163165,2.23588,3492.4,3492.3,25.337472]
[1754240163570,2.60758,3492.4,3492.3,25.337472]
[1754240163866,2.60758,3492.4,3492.3,23.923672]
[1754240164161,2.60758,3492.4,3492.3,24.486572]
[1754240164367,3.37196502,3492.4,3492.3,24.962172]
[1754240164967,0.94977,3492.5,3492.4,2.0477]
[1754240165169,1.71070116,3492.5,3492.4,2.0477]
[1754240165464,0.57263,3492.7,3492.6,0.82]
[1754240165659,0.57263,3492.7,3492.6,21.7517]
[1754240165859,1.33365842,3492.7,3492.6,21.7517]
[1754240166061,0.57263,3492.7,3492.6,21.7517]
[1754240166660,1.97092,3492.8,3492.7,2.0477]
[1754240169166,10.0,3492.9,3492.7,2.0477]
[1754240169372,10.0,3492.9,3492.8,21.7507]
[1754240170172,10.3771,3492.9,3492.8,21.7507]
[1754240170470,10.3771,3492.9,3492.8,25.335472]
[1754240171273,10.0,3492.9,3492.8,28.543272]
[1754240179078,10.0,3492.9,3492.8,8.465972]
[1754240179382,11.4001,3492.9,3492.8,28.554272]
[1754240179776,10.9426,3492.9,3492.8,28.554272]
[1754240179976,10.6242,3492.9,3492.8,28.554272]
[1754240180181,10.0,3492.9,3492.8,28.554272]
[1754240180778,10.3821,3492.9,3492.8,28.554272]
[1754240182682,10.3821,3492.9,3492.8,25.346472]
[1754240182889,10.3821,3492.9,3492.8,28.554272]
[1754240183587,10.6242,3492.9,3492.8,28.554272]
[1754240184790,11.4001,3492.9,3492.8,28.554272]
[1754240188488,11.4001,3492.9,3492.8,29.126882]
[1754240188687,11.758,3492.9,3492.8,28.554272]
[1754240189301,11.758,3492.9,3492.8,28.63277072]
[1754240189791,11.4001,3492.9,3492.8,28.63277072]
[1754240193596,10.0,3492.9,3492.8,28.63277072]
[1754240193796,10.3821,3492.9,3492.8,8.93377072]
[1754240193997,10.3821,3492.9,3492.8,28.62777072]
[1754240194596,11.758,3492.9,3492.8,28.62777072]
[1754240194998,11.4001,3492.9,3492.8,28.62777072]
[1754240197897,10.0,3492.9,3492.8,28.62777072]
[1754240198097,10.6242,3492.9,3492.8,28.62777072]
[1754240198299,11.0817,3492.9,3492.8,28.62777072]
[1754240199196,10.0,3492.9,3492.8,28.62777072]
[1754240199498,0.6242,3493.4,3493.3,2.11451]
[1754240199701,1.0817,3493.4,3493.3,28.6906554]
[1754240200095,1.4001,3493.4,3493.3,28.6906554]
[1754240200297,1.4001,3493.4,3493.3,32.35392612]
[1754240201702,1.4001,3493.4,3493.3,31.78141612]
[1754240201899,1.758,3493.4,3493.3,31.78141612]
[1754240202303,1.758,3493.4,3493.3,28.56827072]
[1754240202498,2.0184,3493.4,3493.3,31.78141612]
[1754240203902,1.4001,3493.4,3493.3,31.78141612]
[1754240204397,2.1169,3493.4,3493.3,31.78141612]
[1754240205896,1.7431,3493.5,3493.4,2.1922]
[1754240206092,1.4584,3493.5,3493.3,6.87107072]
[1754240206297,2.2161,3493.4,3493.3,6.792572]
[1754240206603,2.13760128,3493.4,3493.3,26.481572]
[1754240206805,5.35074668,3493.4,3493.3,3.584772]
[1754240206997,5.35074668,3493.4,3493.3,22.294572]
[1754240208105,2.13760128,3493.4,3493.3,22.294572]
[1754240208308,2.13760128,3493.4,3493.3,2.605572]
[1754240208509,2.13760128,3493.4,3493.3,22.294572]
[1754240208800,2.13760128,3493.4,3493.3,2.605572]
[1754240209105,2.13760128,3493.4,3493.3,22.293572]
[1754240210305,8.55854668,3493.4,3493.3,22.165472]
[1754240210506,8.55854668,3493.4,3493.3,2.014872]
[1754240210808,0.57253,3493.3,3493.0,20.1129]
[1754240211005,0.57253,3493.3,3493.1,0.4249]
[1754240211302,1.43133,3493.3,3492.5,3.2078]
[1754240211507,1.43133,3493.3,3492.7,0.4249]
[1754240211802,1.43133,3493.3,3492.8,20.113]
[1754240212009,0.57259,3492.9,3492.8,20.113]
[1754240212709,0.57259,3492.9,3492.8,0.4249]
[1754240212905,0.57264,3492.7,3492.6,0.4249]
[1754240213210,0.57268,3492.4,3492.3,1.7205]
[1754240213410,0.57268,3492.4,3492.3,21.8812]
[1754240213905,0.57259,3492.9,3492.8,4.009672]
[1754240214103,0.57259,3492.9,3492.8,3.584772]
[1754240214707,0.57259,3492.9,3492.8,4.009672]
[1754240214907,0.57259,3492.9,3492.8,4.434672]
[1754240216008,3.2078,3493.0,3492.9,2.1922]
[1754240216009,3.78038,3493.0,3492.9,2.1922]
[1754240216412,0.57255,3493.2,3492.9,1.2955]
[1754240216709,3.7803,3493.5,3493.3,1.3216]
[1754240216916,3.7803,3493.5,3493.4,2.1922]
[1754240217213,0.57248,3493.7,3493.4,0.8706]
[1754240217413,0.57248,3493.7,3493.6,1.7205]
[1754240217715,0.57248,3493.7,3493.6,2.1922]
[1754240218213,3.78024,3493.9,3493.6,0.8706]
[1754240218407,3.78024,3493.9,3493.8,1.7673]
[1754240218711,3.78024,3493.9,3493.8,2.1922]
[1754240218712,3.95031389,3493.9,3493.8,2.1922]
[1754240218908,3.78024,3493.9,3493.8,2.1922]